fUSD/lending_fUSD_20240628
["ID","MTS","AMOUNT","RATE_DAILY","PERIOD"]
[330520470,1719558660523,-6172.44,0.00019178,2]
[330520471,1719558660533,-1406.76,0.00019178,2]
[330520472,1719558660543,-1699.92,0.00019178,2]
[330520473,1719558660552,-500.0,0.00019178,2]
[330520474,1719558660562,-500.0,0.00019178,2]
[330520475,1719558660571,-500.0,0.00019178,2]
[330520476,1719558660581,-500.0,0.00019178,2]
[330520477,1719558660591,-2223.09,0.00019178,2]
[330520478,1719558660602,-1151.27,0.00019178,2]
[330520479,1719558660614,-1028.2,0.00019178,2]
[330520480,1719558660624,-1414.06,0.00019178,2]
[330520481,1719558660634,-500.0,0.00019178,2]
[330520482,1719558660644,-500.0,0.00019178,2]
[330520483,1719558660654,-500.0,0.00019178,2]
[330520484,1719558660664,-1326.41,0.00019178,2]
[330520485,1719558660674,-828.67,0.00019178,2]
[330520486,1719558660684,-2053.7,0.00019178,2]
[330520487,1719558660694,-500.0,0.00019178,2]
[330520488,1719558660703,-500.0,0.00019178,2]
[330520489,1719558660713,-500.0,0.00019178,2]
[330520490,1719558660723,-1337.2,0.00019178,2]
[330520491,1719558660732,-500.0,0.00019178,2]
[330520492,1719558660742,-500.0,0.00019178,2]
[330520493,1719558660752,-1272.4,0.00019178,2]
[330520494,1719558660762,-20000.0,0.00019178,2]
[330520495,1719558660772,-500.0,0.00019178,2]
[330520496,1719558660783,-2249.71,0.00019178,2]
[330520497,1719558660792,-991.33,0.00019178,2]
[330520498,1719558660804,-500.0,0.00019178,2]
[330520499,1719558660819,-911.5,0.00019178,2]
[330520500,1719558660838,-1776.01,0.00019178,2]
[330520501,1719558660861,-500.0,0.00019178,2]
[330520502,1719558660874,-500.0,0.00019178,2]
[330520503,1719558660885,-500.0,0.00019178,2]
[330520504,1719558660895,-2155.64,0.00019178,2]
[330520505,1719558660905,-1857.47,0.00019178,2]
[330520506,1719558660916,-3058.6,0.00019178,2]
[330520507,1719558660928,-500.0,0.00019178,2]
[330520508,1719558660938,-765.5,0.00019178,2]
[330520509,1719558660949,-3125.25,0.00019178,2]
[330520510,1719558660959,-500.0,0.00019178,2]
[330520511,1719558660969,-837.45,0.00019178,2]
[330520512,1719558660979,-500.0,0.00019178,2]
[330520513,1719558660988,-500.0,0.00019178,2]
[330520514,1719558660998,-396.07971677,0.00019178,2]
[330520515,1719558661007,-983.46061677,0.00019178,2]
[330520516,1719558661022,-559.67,0.00019178,2]
[330520517,1719558661032,-1334.79,0.00019178,2]
[330520518,1719558661042,-6386.04,0.00019178,2]
[330520519,1719558661052,-2687.59,0.00019178,2]
[330520520,1719558661062,-165.82710642,0.00019178,2]
[330520521,1719558661074,-500.0,0.00019178,2]
[330520522,1719558661085,-500.0,0.00019178,2]
[330520523,1719558661095,-982.76,0.00019178,2]
[330520524,1719558661108,-500.0,0.00019178,2]
[330520525,1719558661119,-3632.77,0.00019178,2]
[330520526,1719558661132,-500.0,0.00019178,2]
[330520527,1719558661167,-2037.7,0.00019178,2]
[330520528,1719558661194,-500.0,0.00019178,2]
[330520529,1719558661211,-1150.81,0.00019178,2]
[330520530,1719558661231,-1265.33,0.00019178,2]
[330520531,1719558661250,-1295.75,0.00019178,2]
[330520532,1719558661271,-2092.76,0.00019178,2]
[330520533,1719558661289,-500.0,0.00019178,2]
[330520534,1719558661314,-500.0,0.00019178,2]
[330520535,1719558661332,-500.0,0.00019178,2]
[330520536,1719558661346,-2347.47,0.00019178,2]
[330520537,1719558661367,-3956.23,0.00019178,2]
[330520538,1719558661384,-2747.06,0.00019178,2]
[330520539,1719558661402,-500.0,0.00019178,2]
[330520540,1719558661419,-500.0,0.00019178,2]
[330520541,1719558661432,-500.0,0.00019178,2]
[330520542,1719558661449,-1187.2,0.00019178,2]
[330520543,1719558661465,-212.330985,0.00019178,2]
[330520544,1719558661482,-500.0,0.00019178,2]
[330520545,1719558661510,-794.56,0.00019178,2]
[330520546,1719558661537,-212.330985,0.00019178,2]
[330520547,1719558661562,-1734.74,0.00019178,2]
[330520548,1719558661586,-750.32,0.00019178,2]
[330520549,1719558661610,-212.330985,0.00019178,2]
[330520550,1719558661624,-1131.13,0.00019178,2]
[330520551,1719558661641,-1162.29,0.00019178,2]
[330520552,1719558661665,-697.84,0.00019178,2]
[330520553,1719558661687,-1270.56,0.00019178,2]
[330520554,1719558661706,-212.330985,0.00019178,2]
[330520555,1719558661728,-212.330985,0.00019178,2]
[330520556,1719558661748,-563.55,0.00019178,2]
[330520557,1719558661767,-212.330985,0.00019178,2]
[330520558,1719558661784,-500.0,0.00019178,2]
[330520559,1719558661802,-534.31,0.00019178,2]
[330520560,1719558661820,-212.330985,0.00019178,2]
[330520561,1719558661838,-652.88,0.00019178,2]
[330520562,1719558661855,-212.330985,0.00019178,2]
[330520563,1719558661872,-500.0,0.00019178,2]
[330520564,1719558661888,-500.0,0.00019178,2]
[330520565,1719558661904,-212.330985,0.00019178,2]
[330520566,1719558661934,-212.330985,0.00019178,2]
[330520567,1719558661949,-212.330985,0.00019178,2]
[330520568,1719558661965,-701.47,0.00019178,2]
[330520569,1719558661980,-212.330985,0.00019178,2]
[330520570,1719558661995,-151.0,0.00019178,2]
[330520571,1719558662010,-894.63,0.00019178,2]
[330520572,1719558662024,-962.59,0.00019178,2]
[330520573,1719558662039,-151.0,0.00019178,2]
[330520574,1719558662054,-3879.02,0.00019178,2]
[330520575,1719558662069,-151.0,0.00019178,2]
[330520576,1719558662089,-3149.86,0.00019178,2]
[330520577,1719558662105,-151.0,0.00019178,2]
[330520578,1719558662121,-299.54078134,0.00019178,2]
[330520579,1719558662136,-3389.68,0.00019178,2]
[330520580,1719558662152,-151.0,0.00019178,2]
[330520581,1719558662169,-151.0,0.00019178,2]
[330520582,1719558662185,-818.23,0.00019178,2]
[330520583,1719558662200,-922.79,0.00019178,2]
[330520584,1719558662215,-815.93,0.00019178,2]
[330520585,1719558662230,-500.0,0.00019178,2]
[330520586,1719558662245,-500.0,0.00019178,2]
[330520587,1719558662260,-1891.16,0.00019178,2]
[330520588,1719558662275,-151.0,0.00019178,2]
[330520589,1719558662289,-182.56268,0.00019178,2]
[330520590,1719558662303,-500.0,0.00019178,2]
[330520591,1719558662318,-500.0,0.00019178,2]
[330520592,1719558662333,-961.91,0.00019178,2]
[330520593,1719558662347,-151.0,0.00019178,2]
[330520594,1719558662363,-500.0,0.00019178,2]
[330520595,1719558662377,-500.0,0.00019178,2]
[330520596,1719558662395,-151.0,0.00019178,2]
[330520597,1719558662410,-151.0,0.00019178,2]
[330520598,1719558662423,-1722.25,0.00019178,2]
[330520599,1719558662438,-841.12,0.00019178,2]
[330520600,1719558662452,-521.81,0.00019178,2]
[330520601,1719558662466,-151.0,0.00019178,2]
[330520602,1719558662480,-151.0,0.00019178,2]
[330520603,1719558662494,-151.0,0.00019178,2]
[330520604,1719558662509,-531.65854765,0.00019178,2]
[330520605,1719558662524,-500.0,0.00019178,2]
[330520606,1719558662539,-151.0,0.00019178,2]
[330520607,1719558662554,-653.73,0.00019178,2]
[330520608,1719558662588,-153.757533,0.00019178,2]
[330520609,1719558662611,-516.01,0.00019178,2]
[330520610,1719558662638,-500.0,0.00019178,2]
[330520611,1719558662659,-500.0,0.00019178,2]
[330520612,1719558662680,-500.0,0.00019178,2]
[330520613,1719558662699,-4010.03,0.00019178,2]
[330520614,1719558662718,-500.0,0.00019178,2]
[330520615,1719558662736,-5736.35,0.00019178,2]
[330520616,1719558662754,-1901.06,0.00019178,2]
[330520617,1719558662770,-500.0,0.00019178,2]
[330520618,1719558662788,-500.0,0.00019178,2]
[330520619,1719558662805,-500.0,0.00019178,2]
[330520620,1719558662821,-500.0,0.00019178,2]
[330520621,1719558662837,-500.0,0.00019178,2]
[330520622,1719558662854,-968.86,0.00019178,2]
[330520623,1719558662871,-500.0,0.00019178,2]
[330520624,1719558662886,-5130.51,0.00019178,2]
[330520625,1719558662901,-500.0,0.00019178,2]
[330520626,1719558662917,-500.0,0.00019178,2]
[330520627,1719558662931,-151.0,0.00019178,2]
[330520628,1719558662946,-500.0,0.00019178,2]
[330520629,1719558662960,-500.0,0.00019178,2]
[330520630,1719558662975,-500.0,0.00019178,2]
[330520631,1719558662989,-151.0,0.00019178,2]
[330520632,1719558663004,-1271.97,0.00019178,2]
[330520633,1719558663019,-808.32,0.00019178,2]
[330520634,1719558663032,-500.0,0.00019178,2]
[330520635,1719558663047,-152.131601,0.00019178,2]
[330520636,1719558663060,-500.0,0.00019178,2]
[330520637,1719558663080,-500.0,0.00019178,2]
[330520638,1719558663103,-500.0,0.00019178,2]
[330520639,1719558663119,-500.0,0.00019178,2]
[330520640,1719558663136,-869.41,0.00019178,2]
[330520641,1719558663150,-502.60486628,0.00019178,2]
[330520642,1719558663165,-500.0,0.00019178,2]
[330520643,1719558663179,-1056.35,0.00019178,2]
[330520644,1719558663194,-500.0,0.00019178,2]
[330520645,1719558663207,-1019.98,0.00019178,2]
[330520646,1719558663223,-500.0,0.00019178,2]
[330520647,1719558663237,-4292.01,0.00019178,2]
[330520648,1719558663252,-500.0,0.00019178,2]
[330520649,1719558663266,-4145.59,0.00019178,2]
[330520650,1719558663281,-1954.39,0.00019178,2]
[330520651,1719558663295,-838.06,0.00019178,2]
[330520652,1719558663309,-500.0,0.00019178,2]
[330520653,1719558663324,-4452.14,0.00019178,2]
[330520654,1719558663339,-1653.88,0.00019178,2]
[330520655,1719558663352,-500.0,0.00019178,2]
[330520656,1719558663367,-563.86591048,0.00019178,2]
[330520657,1719558663382,-1093.84,0.00019178,2]
[330520658,1719558663395,-2173.89,0.00019178,2]
[330520659,1719558663408,-500.0,0.00019178,2]
[330520660,1719558663422,-6481.89,0.00019178,2]
[330520661,1719558663435,-500.0,0.00019178,2]
[330520662,1719558663450,-500.17342921,0.00019178,2]
[330520663,1719558663463,-3440.08,0.00019178,2]
[330520664,1719558663476,-2256.77,0.00019178,2]
[330520665,1719558663490,-1092.07,0.00019178,2]
[330520666,1719558663505,-1205.22,0.00019178,2]
[330520667,1719558663520,-500.0,0.00019178,2]
[330520668,1719558663534,-970.21,0.00019178,2]
[330520669,1719558663548,-1258.06,0.00019178,2]
[330520670,1719558663562,-1015.77,0.00019178,2]
[330520671,1719558663576,-513.08876724,0.00019178,2]
[330520672,1719558663589,-500.0,0.00019178,2]
[330520673,1719558663604,-756.72,0.00019178,2]
[330520674,1719558663617,-500.0,0.00019178,2]
[330520675,1719558663631,-500.0,0.00019178,2]
[330520676,1719558663645,-500.0,0.00019178,2]
[330520677,1719558663659,-2781.99,0.00019178,2]
[330520678,1719558663673,-966.96,0.00019178,2]
[330520679,1719558663688,-151.0,0.00019178,2]
[330520680,1719558663704,-1416.17,0.00019178,2]
[330520681,1719558663717,-1711.73,0.00019178,2]
[330520682,1719558663730,-151.0,0.00019178,2]
[330520683,1719558663744,-4037.57,0.00019178,2]
[330520684,1719558663758,-500.0,0.00019178,2]
[330520685,1719558663772,-151.0,0.00019178,2]
[330520686,1719558663785,-500.0,0.00019178,2]
[330520687,1719558663799,-151.0,0.00019178,2]
[330520688,1719558663813,-1538.54,0.00019178,2]
[330520689,1719558663825,-151.0,0.00019178,2]
[330520690,1719558663839,-500.0,0.00019178,2]
[330520691,1719558663852,-151.0,0.00019178,2]
[330520692,1719558663867,-500.0,0.00019178,2]
[330520693,1719558663881,-500.0,0.00019178,2]
[330520694,1719558663894,-688.39,0.00019178,2]
[330520695,1719558663906,-500.0,0.00019178,2]
[330520696,1719558663919,-998.94,0.00019178,2]
[330520697,1719558663931,-500.0,0.00019178,2]
[330520698,1719558663944,-500.0,0.00019178,2]
[330520699,1719558663957,-4654.37,0.00019178,2]
[330520700,1719558663971,-500.0,0.00019178,2]
[330520701,1719558663985,-500.0,0.00019178,2]
[330520702,1719558663997,-2829.41,0.00019178,2]
[330520703,1719558664010,-1778.34,0.00019178,2]
[330520704,1719558664024,-6549.64,0.00019178,2]
[330520705,1719558664036,-890.23,0.00019178,2]
[330520706,1719558664049,-1013.81,0.00019178,2]
[330520707,1719558664063,-151.0,0.00019178,2]
[330520708,1719558664078,-151.0,0.00019178,2]
[330520709,1719558664093,-1221.16,0.00019178,2]
[330520710,1719558664106,-5081.21,0.00019178,2]
[330520711,1719558664119,-151.0,0.00019178,2]
[330520712,1719558664133,-151.0,0.00019178,2]
[330520713,1719558664146,-1623.52,0.00019178,2]
[330520714,1719558664161,-151.0,0.00019178,2]
[330520715,1719558664175,-533.3,0.00019178,2]
[330520716,1719558664189,-151.0,0.00019178,2]
[330520717,1719558664203,-500.0,0.00019178,2]
[330520718,1719558664217,-3679.5,0.00019178,2]
[330520719,1719558664231,-151.0,0.00019178,2]
[330520720,1719558664245,-500.0,0.00019178,2]
[330520721,1719558664258,-732.25,0.00019178,2]
[330520722,1719558664270,-151.0,0.00019178,2]
[330520723,1719558664283,-151.0,0.00019178,2]
[330520724,1719558664296,-151.0,0.00019178,2]
[330520725,1719558664309,-151.0,0.00019178,2]
[330520726,1719558664322,-151.0,0.00019178,2]
[330520727,1719558664335,-151.0,0.00019178,2]
[330520728,1719558664347,-151.0,0.00019178,2]
[330520729,1719558664362,-151.0,0.00019178,2]
[330520730,1719558664375,-1337.52,0.00019178,2]
[330520731,1719558664388,-151.0,0.00019178,2]
[330520732,1719558664401,-260.262568,0.00019178,2]
[330520733,1719558664414,-500.0,0.00019178,2]
[330520734,1719558664426,-641.03,0.00019178,2]
[330520735,1719558664439,-525.72,0.00019178,2]
[330520736,1719558664451,-3791.95,0.00019178,2]
[330520737,1719558664464,-605.33,0.00019178,2]
[330520738,1719558664477,-500.0,0.00019178,2]
[330520739,1719558664490,-500.0,0.00019178,2]
[330520740,1719558664503,-5370.36,0.00019178,2]
[330520741,1719558664516,-6691.24,0.00019178,2]
[330520742,1719558665081,-500.0,0.00019178,2]
[330520743,1719558665099,-500.0,0.00019178,2]
[330520744,1719558665119,-3471.97,0.00019178,2]
[330520745,1719558665153,-500.0,0.00019178,2]
[330520746,1719558665171,-1454.37,0.00019178,2]
[330520747,1719558665180,-669.45,0.00019178,2]
[330520748,1719558665190,-500.0,0.00019178,2]
[330520749,1719558665200,-5958.69,0.00019178,2]
[330520750,1719558665209,-30754.66,0.00019178,2]
[330520751,1719558665219,-500.0,0.00019178,2]
[330520752,1719558665229,-1290.13,0.00019178,2]
[330520753,1719558665238,-1237.21,0.00019178,2]
[330520754,1719558665249,-976.4,0.00019178,2]
[330520755,1719558665259,-500.0,0.00019178,2]
[330520756,1719558665269,-500.0,0.00019178,2]
[330520757,1719558665279,-2968.59,0.00019178,2]
[330520758,1719558665288,-570.63,0.00019178,2]
[330520759,1719558665298,-500.0,0.00019178,2]
[330520760,1719558665308,-2000.0,0.00019178,2]
[330520761,1719558665319,-522.16,0.00019178,2]
[330520762,1719558665329,-1371.95,0.00019178,2]
[330520763,1719558665340,-500.0,0.00019178,2]
[330520764,1719558665350,-671.81,0.00019178,2]
[330520765,1719558665361,-500.0,0.00019178,2]
[330520766,1719558665371,-5105.82,0.00019178,2]
[330520767,1719558665381,-749.05,0.00019178,2]
[330520768,1719558665391,-1240.17,0.00019178,2]
[330520769,1719558665402,-718.73,0.00019178,2]
[330520770,1719558665412,-500.0,0.00019178,2]
[330520771,1719558665422,-500.0,0.00019178,2]
[330520772,1719558665432,-500.16140518,0.00019178,2]
[330520773,1719558665444,-500.0,0.00019178,2]
[330520774,1719558665455,-151.0,0.00019178,2]
[330520775,1719558665465,-1031.18,0.00019178,2]
[330520776,1719558665475,-500.0,0.00019178,2]
[330520777,1719558665485,-151.0,0.00019178,2]
[330520778,1719558665495,-151.0,0.00019178,2]
[330520779,1719558665505,-151.0,0.00019178,2]
[330520780,1719558665515,-904.03,0.00019178,2]
[330520781,1719558665524,-151.0,0.00019178,2]
[330520782,1719558665534,-151.0,0.00019178,2]
[330520783,1719558665544,-500.0,0.00019178,2]
[330520784,1719558665554,-500.0,0.00019178,2]
[330520785,1719558665564,-500.0,0.00019178,2]
[330520786,1719558665574,-151.0,0.00019178,2]
[330520787,1719558665583,-500.0,0.00019178,2]
[330520788,1719558665594,-215.359764,0.00019178,2]
[330520789,1719558665604,-1722.3,0.00019178,2]
[330520790,1719558665616,-1449.03,0.00019178,2]
[330520791,1719558665626,-824.89,0.00019178,2]
[330520792,1719558665638,-533.7,0.00019178,2]
[330520793,1719558665647,-500.0,0.00019178,2]
[330520794,1719558665657,-660.51,0.00019178,2]
[330520795,1719558665667,-500.0,0.00019178,2]
[330520796,1719558665677,-4126.2,0.00019178,2]
[330520797,1719558665687,-500.0,0.00019178,2]
[330520798,1719558665697,-1483.53,0.00019178,2]
[330520799,1719558665706,-1317.53,0.00019178,2]
[330520800,1719558665716,-500.0,0.00019178,2]
[330520801,1719558665730,-500.0,0.00019178,2]
[330520802,1719558665740,-151.0,0.00019178,2]
[330520803,1719558665752,-152.990494,0.00019178,2]
[330520804,1719558665763,-151.0,0.00019178,2]
[330520805,1719558665772,-933.61,0.00019178,2]
[330520806,1719558665782,-151.0,0.00019178,2]
[330520807,1719558665792,-500.0,0.00019178,2]
[330520808,1719558665802,-500.0,0.00019178,2]
[330520809,1719558665813,-500.0,0.00019178,2]
[330520810,1719558665824,-500.0,0.00019178,2]
[330520811,1719558665833,-533.93,0.00019178,2]
[330520812,1719558665843,-240.027872,0.00019178,2]
[330520813,1719558665851,-823.66,0.00019178,2]
[330520814,1719558665864,-6561.73,0.00019178,2]
[330520815,1719558665873,-2750.42,0.00019178,2]
[330520816,1719558665882,-500.0,0.00019178,2]
[330520817,1719558665891,-500.0,0.00019178,2]
[330520818,1719558665900,-500.0,0.00019178,2]
[330520819,1719558665909,-818.57,0.00019178,2]
[330520820,1719558665918,-5380.04,0.00019178,2]
[330520821,1719558665927,-151.0,0.00019178,2]
[330520822,1719558665937,-500.0,0.00019178,2]
[330520823,1719558665947,-909.91,0.00019178,2]
[330520824,1719558665958,-1741.22,0.00019178,2]
[330520825,1719558665967,-2362.86,0.00019178,2]
[330520826,1719558665976,-4215.13,0.00019178,2]
[330520827,1719558665986,-500.0,0.00019178,2]
[330520828,1719558665995,-500.0,0.00019178,2]
[330520829,1719558666005,-500.0,0.00019178,2]
[330520830,1719558666014,-899.16,0.00019178,2]
[330520831,1719558666023,-500.0,0.00019178,2]
[330520832,1719558666032,-1363.98,0.00019178,2]
[330520833,1719558666042,-1095.37,0.00019178,2]
[330520834,1719558666051,-500.0,0.00019178,2]
[330520835,1719558666062,-500.0,0.00019178,2]
[330520836,1719558666073,-1348.73,0.00019178,2]
[330520837,1719558666087,-500.0,0.00019178,2]
[330520838,1719558666097,-2784.49,0.00019178,2]
[330520839,1719558666107,-500.0,0.00019178,2]
[330520840,1719558666117,-500.0,0.00019178,2]
[330520841,1719558666127,-5415.16,0.00019178,2]
[330520842,1719558666136,-721.89,0.00019178,2]
[330520843,1719558666146,-517.98,0.00019178,2]
[330520844,1719558666156,-1366.3,0.00019178,2]
[330520845,1719558666166,-500.0,0.00019178,2]
[330520846,1719558666178,-1467.32,0.00019178,2]
[330520847,1719558666188,-500.0,0.00019178,2]
[330520848,1719558666198,-500.0,0.00019178,2]
[330520849,1719558666208,-564.93989895,0.00019178,2]
[330520850,1719558666219,-500.0,0.00019178,2]
[330520851,1719558666228,-500.0,0.00019178,2]
[330520852,1719558666237,-500.0,0.00019178,2]
[330520853,1719558666247,-3205.37,0.00019178,2]
[330520854,1719558666256,-500.0,0.00019178,2]
[330520855,1719558666266,-500.0,0.00019178,2]
[330520856,1719558666275,-1363.3,0.00019178,2]
[330520857,1719558666284,-500.0,0.00019178,2]
[330520858,1719558666294,-663.91,0.00019178,2]
[330520859,1719558666303,-1362.43,0.00019178,2]
[330520860,1719558666313,-1362.43,0.00019178,2]
[330520861,1719558666322,-500.0,0.00019178,2]
[330520862,1719558666331,-1362.43,0.00019178,2]
[330520863,1719558666340,-1362.43,0.00019178,2]
[330520864,1719558666350,-1362.43,0.00019178,2]
[330520865,1719558666361,-1362.43,0.00019178,2]
[330520866,1719558666370,-1012.77,0.00019178,2]
[330520867,1719558666380,-1362.43,0.00019178,2]
[330520868,1719558666390,-1012.77,0.00019178,2]
[330520869,1719558666399,-1362.43,0.00019178,2]
[330520870,1719558666410,-1012.77,0.00019178,2]
[330520871,1719558666419,-500.0,0.00019178,2]
[330520872,1719558666429,-1362.43,0.00019178,2]
[330520873,1719558666440,-1012.77,0.00019178,2]
[330520874,1719558666450,-1362.43,0.00019178,2]
[330520875,1719558666461,-1012.77,0.00019178,2]
[330520876,1719558666471,-1362.43,0.00019178,2]
[330520877,1719558666482,-1012.77,0.00019178,2]
[330520878,1719558666492,-6818.21,0.00019178,2]
[330520879,1719558666503,-1362.43,0.00019178,2]
[330520880,1719558666513,-1012.77,0.00019178,2]
[330520881,1719558666522,-1362.43,0.00019178,2]
[330520882,1719558666532,-1012.77,0.00019178,2]
[330520883,1719558666541,-1362.43,0.00019178,2]
[330520884,1719558666550,-1012.77,0.00019178,2]
[330520885,1719558666560,-1362.43,0.00019178,2]
[330520886,1719558666570,-1012.77,0.00019178,2]
[330520887,1719558666579,-1362.43,0.00019178,2]
[330520888,1719558666588,-1012.77,0.00019178,2]
[330520889,1719558666598,-1362.43,0.00019178,2]
[330520890,1719558666609,-1012.77,0.00019178,2]
[330520891,1719558666619,-1362.43,0.00019178,2]
[330520892,1719558666627,-1012.77,0.00019178,2]
[330520893,1719558666637,-1566.24,0.00019178,2]
[330520894,1719558666646,-1362.43,0.00019178,2]
[330520895,1719558666656,-651.46,0.00019178,2]
[330520896,1719558666665,-1012.77,0.00019178,2]
[330520897,1719558666674,-500.0,0.00019178,2]
[330520898,1719558666684,-1362.43,0.00019178,2]
[330520899,1719558666695,-1012.77,0.00019178,2]
[330520900,1719558666706,-1362.43,0.00019178,2]
[330520901,1719558666716,-1012.77,0.00019178,2]
[330520902,1719558666727,-1362.43,0.00019178,2]
[330520903,1719558666737,-597.99,0.00019178,2]
[330520904,1719558666749,-500.0,0.00019178,2]
[330520905,1719558666759,-500.0,0.00019178,2]
[330520906,1719558666771,-1012.77,0.00019178,2]
[330520907,1719558666781,-1362.43,0.00019178,2]
[330520908,1719558666792,-2414.6,0.00019178,2]
[330520909,1719558666803,-1012.77,0.00019178,2]
[330520910,1719558666812,-1362.65971358,0.00019178,2]
[330520911,1719558666821,-1012.77,0.00019178,2]
[330520912,1719558666831,-1012.77,0.00019178,2]
[330520913,1719558666840,-1012.77,0.00019178,2]
[330520914,1719558666849,-500.0,0.00019178,2]
[330520915,1719558666859,-1012.77,0.00019178,2]
[330520916,1719558666869,-500.0,0.00019178,2]
[330520917,1719558666878,-1012.77,0.00019178,2]
[330520918,1719558666887,-3214.15,0.00019178,2]
[330520919,1719558666897,-1012.99657053,0.00019178,2]
[330520920,1719558666906,-500.0,0.00019178,2]
[330520921,1719558666915,-2931.11,0.00019178,2]
[330520922,1719558666924,-500.0,0.00019178,2]
[330520923,1719558666934,-1055.48,0.00019178,2]
[330520924,1719558666944,-500.0,0.00019178,2]
[330520925,1719558666953,-3013.27,0.00019178,2]
[330520926,1719558666962,-902.19,0.00019178,2]
[330520927,1719558666971,-2062.6,0.00019178,2]
[330520928,1719558666981,-547.17,0.00019178,2]
[330520929,1719558666991,-2204.01,0.00019178,2]
[330520930,1719558667000,-500.0,0.00019178,2]
[330520931,1719558667010,-500.0,0.00019178,2]
[330520932,1719558667019,-500.0,0.00019178,2]
[330520933,1719558667028,-4246.42,0.00019178,2]
[330520934,1719558667037,-4074.54,0.00019178,2]
[330520935,1719558667046,-1752.12,0.00019178,2]
[330520936,1719558667056,-939.85,0.00019178,2]
[330520937,1719558667065,-500.0,0.00019178,2]
[330520938,1719558667076,-500.0,0.00019178,2]
[330520939,1719558667090,-2149.46,0.00019178,2]
[330520940,1719558667100,-753.24,0.00019178,2]
[330520941,1719558667111,-3942.97,0.00019178,2]
[330520942,1719558667121,-500.0,0.00019178,2]
[330520943,1719558667132,-500.0,0.00019178,2]
[330520944,1719558667141,-3207.38,0.00019178,2]
[330520945,1719558667151,-500.0,0.00019178,2]
[330520946,1719558667163,-500.0,0.00019178,2]
[330520947,1719558667173,-933.87,0.00019178,2]
[330520948,1719558667183,-500.0,0.00019178,2]
[330520949,1719558667192,-1223.64,0.00019178,2]
[330520950,1719558667201,-1111.0,0.00019178,2]
[330520951,1719558667212,-657.09,0.00019178,2]
[330520952,1719558667221,-500.0,0.00019178,2]
[330520953,1719558667230,-1410.72,0.00019178,2]
[330520954,1719558667240,-3654.55,0.00019178,2]
[330520955,1719558667250,-2279.59,0.00019178,2]
[330520956,1719558667259,-500.0,0.00019178,2]
[330520957,1719558667269,-664.58,0.00019178,2]
[330520958,1719558667278,-500.0,0.00019178,2]
[330520959,1719558667288,-1139.96,0.00019178,2]
[330520960,1719558667298,-2393.99,0.00019178,2]
[330520961,1719558667307,-2137.53,0.00019178,2]
[330520962,1719558667316,-500.0,0.00019178,2]
[330520963,1719558667325,-500.0,0.00019178,2]
[330520964,1719558667334,-642.75,0.00019178,2]
[330520965,1719558667344,-1353.36,0.00019178,2]
[330520966,1719558667353,-1653.07,0.00019178,2]
[330520967,1719558667363,-500.0,0.00019178,2]
[330520968,1719558667373,-3566.37,0.00019178,2]
[330520969,1719558667382,-500.0,0.00019178,2]